[Event "Titled Tuesday Blitz November 29 Early 2022"]
[White "Bettalli, Francesco"]
[Black "Jakubowski, Krzysztof"]
[WhiteFideId "2816453"]
[BlackFideId "1112848"]
[WhiteElo "2216"]
[BlackElo "2373"]
[Result "0-1"]
[Round "04"]
[TimeControl "180+1"]
[Date "2022.11.30"]
[WhiteClock "0:01:27"]
[BlackClock "0:00:32"]

1. d4 {[%clk 0:03:00]}  Nf6 {[%clk 0:02:57]} 2. Nc3 {[%clk 0:03:00]}  d5 {[%clk 0:02:54]} 3. Bg5 {[%clk 0:02:59]}  c6 {[%clk 0:02:46]} 4. Bxf6 {[%clk 0:02:58]}  exf6 {[%clk 0:02:45]} 5. e4 {[%clk 0:02:59]}  Bb4 {[%clk 0:02:41]} 6. exd5 {[%clk 0:02:59]}  Qxd5 {[%clk 0:02:40]} 7. Nf3 {[%clk 0:02:58]}  O-O {[%clk 0:02:38]} 8. Be2 {[%clk 0:02:59]}  Bxc3+ {[%clk 0:02:36]} 9. bxc3 {[%clk 0:02:59]}  Nd7 {[%clk 0:02:32]} 10. O-O {[%clk 0:02:58]}  Nb6 {[%clk 0:02:31]} 11. Qd3 {[%clk 0:02:47]}  Bf5 {[%clk 0:02:26]} 12. Qd2 {[%clk 0:02:47]}  Rfe8 {[%clk 0:02:21]} 13. Bd3 {[%clk 0:02:46]}  Nc4 {[%clk 0:02:17]} 14. Bxc4 {[%clk 0:02:46]}  Qxc4 {[%clk 0:02:16]} 15. Rab1 {[%clk 0:02:46]}  b5 {[%clk 0:02:13]} 16. Rfe1 {[%clk 0:02:46]}  Qxa2 {[%clk 0:02:07]} 17. Ra1 {[%clk 0:02:36]}  Qxc2 {[%clk 0:01:56]} 18. Qxc2 {[%clk 0:02:35]}  Bxc2 {[%clk 0:01:55]} 19. Rxe8+ {[%clk 0:02:35]}  Rxe8 {[%clk 0:01:54]} 20. Rxa7 {[%clk 0:02:36]}  g5 {[%clk 0:01:45]} 21. h3 {[%clk 0:02:34]}  Be4 {[%clk 0:01:44]} 22. Nd2 {[%clk 0:02:32]}  Bd5 {[%clk 0:01:44]} 23. Kf1 {[%clk 0:02:32]}  h5 {[%clk 0:01:40]} 24. f3 {[%clk 0:02:33]}  h4 {[%clk 0:01:39]} 25. Kf2 {[%clk 0:02:33]}  Kg7 {[%clk 0:01:39]} 26. Nf1 {[%clk 0:02:33]}  Rd8 {[%clk 0:01:31]} 27. Ne3 {[%clk 0:02:33]}  Be6 {[%clk 0:01:31]} 28. Rc7 {[%clk 0:02:32]}  Rd6 {[%clk 0:01:31]} 29. Nc2 {[%clk 0:02:29]}  f5 {[%clk 0:01:27]} 30. Nb4 {[%clk 0:02:28]}  Bd7 {[%clk 0:01:26]} 31. Nd3 {[%clk 0:02:27]}  f4 {[%clk 0:01:19]} 32. Ne5 {[%clk 0:02:23]}  Be8 {[%clk 0:01:19]} 33. Rc8 {[%clk 0:02:20]}  Kf8 {[%clk 0:01:18]} 34. Ke2 {[%clk 0:02:17]}  Ke7 {[%clk 0:01:18]} 35. Kd3 {[%clk 0:02:15]}  f6 {[%clk 0:01:16]} 36. Ng4 {[%clk 0:02:10]}  Bg6+ {[%clk 0:01:14]} 37. Kd2 {[%clk 0:02:09]}  Bf5 {[%clk 0:01:05]} 38. Rc7+ {[%clk 0:02:07]}  Kd8 {[%clk 0:01:05]} 39. Rf7 {[%clk 0:02:04]}  Bxg4 {[%clk 0:01:05]} 40. hxg4 {[%clk 0:02:05]}  Re6 {[%clk 0:01:03]} 41. Kd3 {[%clk 0:02:01]}  Ke8 {[%clk 0:01:01]} 42. Rc7 {[%clk 0:02:01]}  Kd8 {[%clk 0:00:51]} 43. Rf7 {[%clk 0:02:01]}  h3 {[%clk 0:00:45]} 44. gxh3 {[%clk 0:01:58]}  Re3+ {[%clk 0:00:39]} 45. Kd2 {[%clk 0:01:59]}  Rxf3 {[%clk 0:00:39]} 46. Rxf6 {[%clk 0:01:59]}  Rxh3 {[%clk 0:00:39]} 47. Rxc6 {[%clk 0:01:59]}  Rg3 {[%clk 0:00:39]} 48. Rc5 {[%clk 0:01:58]}  Rxg4 {[%clk 0:00:39]} 49. Rxb5 {[%clk 0:01:58]}  Rg2+ {[%clk 0:00:38]} 50. Kd3 {[%clk 0:01:56]}  g4 {[%clk 0:00:38]} 51. Rf5 {[%clk 0:01:53]}  Rf2 {[%clk 0:00:37]} 52. Rg5 {[%clk 0:01:35]}  g3 {[%clk 0:00:36]} 53. Ke4 {[%clk 0:01:36]}  g2 {[%clk 0:00:34]} 54. Kd5 {[%clk 0:01:31]}  f3 {[%clk 0:00:34]} 55. Kd6 {[%clk 0:01:28]}  Ke8 {[%clk 0:00:34]} 56. Ke6 {[%clk 0:01:29]}  Re2+ {[%clk 0:00:34]} 57. Kd6 {[%clk 0:01:25]}  f2 {[%clk 0:00:31]} 58. Rxg2 {[%clk 0:01:25]}  f1=Q {[%clk 0:00:31]} 59. Rg8+ {[%clk 0:01:26]}  Kf7 {[%clk 0:00:31]} 60. Rg5 {[%clk 0:01:26]}  Qf4+ {[%clk 0:00:31]} 61. Re5 {[%clk 0:01:27]}  Rxe5 {[%clk 0:00:31]} 62. dxe5 {[%clk 0:01:28]}  Kg6 {[%clk 0:00:31]} 63. c4 {[%clk 0:01:28]}  Kf5 {[%clk 0:00:31]} 64. Kd7 {[%clk 0:01:26]}  Qxe5 {[%clk 0:00:32]} 65. c5 {[%clk 0:01:27]} 0-1


[Site "https://www.chess.com"]

[Event "Titled Tuesday Blitz November 29 Early 2022"]
[White "Bok, Benjamin"]
[Black "Ingebretsen, Jens E"]
[WhiteFideId "1017063"]
[BlackFideId "1522965"]
[WhiteElo "2658"]
[BlackElo "2213"]
[Result "0-1"]
[Round "04"]
[TimeControl "180+1"]
[Date "2022.11.30"]
[WhiteClock "0:00:05"]
[BlackClock "0:00:11"]

1. d4 {[%clk 0:02:57]}  Nf6 {[%clk 0:02:59]} 2. c4 {[%clk 0:02:57]}  e6 {[%clk 0:03:00]} 3. Nc3 {[%clk 0:02:57]}  Bb4 {[%clk 0:03:00]} 4. Qc2 {[%clk 0:02:57]}  O-O {[%clk 0:03:00]} 5. a3 {[%clk 0:02:57]}  Bxc3+ {[%clk 0:03:00]} 6. Qxc3 {[%clk 0:02:58]}  b6 {[%clk 0:03:00]} 7. Bg5 {[%clk 0:02:57]}  Bb7 {[%clk 0:03:01]} 8. e3 {[%clk 0:02:58]}  h6 {[%clk 0:03:01]} 9. Bh4 {[%clk 0:02:58]}  d6 {[%clk 0:03:01]} 10. f3 {[%clk 0:02:58]}  Nbd7 {[%clk 0:03:02]} 11. Bd3 {[%clk 0:02:58]}  e5 {[%clk 0:02:57]} 12. dxe5 {[%clk 0:02:54]}  Nxe5 {[%clk 0:02:54]} 13. O-O-O {[%clk 0:02:53]}  b5 {[%clk 0:02:44]} 14. Ne2 {[%clk 0:02:23]}  bxc4 {[%clk 0:02:25]} 15. Bxc4 {[%clk 0:02:22]}  Qe7 {[%clk 0:02:25]} 16. Ba2 {[%clk 0:02:17]}  a5 {[%clk 0:02:10]} 17. Nd4 {[%clk 0:02:17]}  Ra6 {[%clk 0:01:39]} 18. Kb1 {[%clk 0:02:11]}  Rb6 {[%clk 0:01:37]} 19. e4 {[%clk 0:02:00]}  Nxe4 {[%clk 0:01:19]} 20. fxe4 {[%clk 0:01:52]}  Qxh4 {[%clk 0:01:18]} 21. Qxc7 {[%clk 0:01:52]}  Bxe4+ {[%clk 0:00:43]} 22. Ka1 {[%clk 0:01:53]}  Rfb8 {[%clk 0:00:44]} 23. Rd2 {[%clk 0:01:44]}  Nd3 {[%clk 0:00:40]} 24. Qxf7+ {[%clk 0:01:36]}  Kh8 {[%clk 0:00:31]} 25. g3 {[%clk 0:00:40]}  Qg5 {[%clk 0:00:10]} 26. Rhd1 {[%clk 0:00:18]}  Qe5 {[%clk 0:00:10]} 27. Rxd3 {[%clk 0:00:09]}  Bxd3 {[%clk 0:00:10]} 28. Rxd3 {[%clk 0:00:10]}  Qe1+ {[%clk 0:00:11]} 29. Bb1 {[%clk 0:00:07]}  Rxb2 {[%clk 0:00:11]} 30. Rb3 {[%clk 0:00:05]}  Qxb1# {[%clk 0:00:11]} 0-1


[Site "https://www.chess.com"]

[Event "Titled Tuesday Blitz November 29 Early 2022"]
[White "Broca Jimenez, Fernando"]
[Black "Stijve, Theo"]
[WhiteFideId "5104742"]
[BlackFideId "1331132"]
[WhiteElo "2062"]
[BlackElo "2256"]
[Result "0-1"]
[Round "04"]
[TimeControl "180+1"]
[Date "2022.11.30"]
[WhiteClock "0:00:04"]
[BlackClock "0:01:00"]

1. e4 {[%clk 0:03:00]}  e6 {[%clk 0:02:57]} 2. d4 {[%clk 0:03:00]}  d5 {[%clk 0:02:56]} 3. exd5 {[%clk 0:03:01]}  exd5 {[%clk 0:02:56]} 4. Bd3 {[%clk 0:03:01]}  Bd6 {[%clk 0:02:52]} 5. Nf3 {[%clk 0:02:59]}  Nf6 {[%clk 0:02:50]} 6. Qe2+ {[%clk 0:02:59]}  Qe7 {[%clk 0:02:47]} 7. Qxe7+ {[%clk 0:02:59]}  Bxe7 {[%clk 0:02:44]} 8. O-O {[%clk 0:03:00]}  O-O {[%clk 0:02:44]} 9. Bg5 {[%clk 0:02:59]}  c6 {[%clk 0:02:39]} 10. Re1 {[%clk 0:02:58]}  Be6 {[%clk 0:02:39]} 11. Nbd2 {[%clk 0:02:56]}  Nbd7 {[%clk 0:02:39]} 12. c3 {[%clk 0:02:55]}  Rfe8 {[%clk 0:02:39]} 13. Re2 {[%clk 0:02:55]}  Nf8 {[%clk 0:02:39]} 14. Rae1 {[%clk 0:02:54]}  Ng6 {[%clk 0:02:37]} 15. Ne5 {[%clk 0:02:41]}  Nxe5 {[%clk 0:02:30]} 16. Rxe5 {[%clk 0:02:42]}  Ng4 {[%clk 0:02:20]} 17. Rxe6 {[%clk 0:02:14]}  fxe6 {[%clk 0:02:18]} 18. Bf4 {[%clk 0:02:14]}  Bf8 {[%clk 0:02:04]} 19. h3 {[%clk 0:02:09]}  Nf6 {[%clk 0:02:04]} 20. Nf3 {[%clk 0:02:07]}  Nd7 {[%clk 0:01:55]} 21. Ng5 {[%clk 0:01:35]}  h6 {[%clk 0:01:51]} 22. Nxe6 {[%clk 0:01:17]}  g5 {[%clk 0:01:51]} 23. Bg3 {[%clk 0:01:13]}  Kf7 {[%clk 0:01:43]} 24. Bf5 {[%clk 0:01:10]}  Bg7 {[%clk 0:01:32]} 25. Kf1 {[%clk 0:01:05]}  Nf8 {[%clk 0:01:27]} 26. Nxg7 {[%clk 0:00:58]}  Rxe1+ {[%clk 0:01:25]} 27. Kxe1 {[%clk 0:00:58]}  Kxg7 {[%clk 0:01:25]} 28. Be5+ {[%clk 0:00:55]}  Kf7 {[%clk 0:01:25]} 29. Ke2 {[%clk 0:00:52]}  Ng6 {[%clk 0:01:25]} 30. g3 {[%clk 0:00:37]}  Re8 {[%clk 0:01:18]} 31. Bxg6+ {[%clk 0:00:33]}  Kxg6 {[%clk 0:01:19]} 32. Ke3 {[%clk 0:00:32]}  h5 {[%clk 0:01:18]} 33. f3 {[%clk 0:00:20]}  c5 {[%clk 0:01:16]} 34. b3 {[%clk 0:00:16]}  b5 {[%clk 0:01:13]} 35. f4 {[%clk 0:00:16]}  Kf5 {[%clk 0:01:11]} 36. Kf3 {[%clk 0:00:13]}  gxf4 {[%clk 0:01:08]} 37. g4+ {[%clk 0:00:10]}  Kg6 {[%clk 0:01:04]} 38. Kxf4 {[%clk 0:00:10]}  Rf8+ {[%clk 0:01:03]} 39. Kg3 {[%clk 0:00:09]}  c4 {[%clk 0:01:04]} 40. bxc4 {[%clk 0:00:09]}  bxc4 {[%clk 0:01:04]} 41. h4 {[%clk 0:00:08]}  Rf1 {[%clk 0:01:03]} 42. g5 {[%clk 0:00:02]}  Rc1 {[%clk 0:01:03]} 43. Bf6 {[%clk 0:00:01]}  Rxc3+ {[%clk 0:01:03]} 44. Kf4 {[%clk 0:00:02]}  Rh3 {[%clk 0:01:01]} 45. Ke5 {[%clk 0:00:03]}  c3 {[%clk 0:01:00]} 46. Kxd5 {[%clk 0:00:04]}  c2 {[%clk 0:01:00]} 0-1


[Site "https://www.chess.com"]

[Event "Titled Tuesday Blitz November 29 Early 2022"]
[White "Ciuffoletti, Paolo"]
[Black "Kiseljova, Marya"]
[WhiteFideId "807630"]
[BlackFideId "4155009"]
[WhiteElo "2143"]
[BlackElo "1907"]
[Result "1-0"]
[Round "04"]
[TimeControl "180+1"]
[Date "2022.11.30"]
[WhiteClock "0:00:11"]
[BlackClock "0:00:08"]

1. e4 {[%clk 0:03:00]}  c5 {[%clk 0:02:56]} 2. d4 {[%clk 0:02:59]}  cxd4 {[%clk 0:02:55]} 3. c3 {[%clk 0:02:59]}  dxc3 {[%clk 0:02:54]} 4. Nxc3 {[%clk 0:02:58]}  d6 {[%clk 0:02:54]} 5. Nf3 {[%clk 0:02:59]}  Nf6 {[%clk 0:02:54]} 6. Bc4 {[%clk 0:02:57]}  e6 {[%clk 0:02:55]} 7. e5 {[%clk 0:02:48]}  Qc7 {[%clk 0:02:32]} 8. Bb5+ {[%clk 0:02:38]}  Nfd7 {[%clk 0:02:29]} 9. Bf4 {[%clk 0:02:37]}  d5 {[%clk 0:02:27]} 10. O-O {[%clk 0:02:27]}  a6 {[%clk 0:02:27]} 11. Rc1 {[%clk 0:02:05]}  Nc6 {[%clk 0:02:04]} 12. Ba4 {[%clk 0:01:47]}  Nb6 {[%clk 0:01:27]} 13. Bc2 {[%clk 0:01:26]}  Be7 {[%clk 0:01:16]} 14. Bb1 {[%clk 0:01:14]}  Bd7 {[%clk 0:01:06]} 15. Re1 {[%clk 0:01:00]}  Nc4 {[%clk 0:00:55]} 16. Bg3 {[%clk 0:00:37]}  Nxb2 {[%clk 0:00:49]} 17. Qe2 {[%clk 0:00:31]}  Nc4 {[%clk 0:00:48]} 18. Nxd5 {[%clk 0:00:30]}  exd5 {[%clk 0:00:42]} 19. e6 {[%clk 0:00:30]}  Bd6 {[%clk 0:00:25]} 20. exd7+ {[%clk 0:00:27]}  Kxd7 {[%clk 0:00:24]} 21. Bf5+ {[%clk 0:00:26]}  Kd8 {[%clk 0:00:20]} 22. Bxd6 {[%clk 0:00:18]}  Nxd6 {[%clk 0:00:20]} 23. Bh3 {[%clk 0:00:17]}  f5 {[%clk 0:00:19]} 24. Ne5 {[%clk 0:00:17]}  Re8 {[%clk 0:00:17]} 25. Qh5 {[%clk 0:00:16]}  Re7 {[%clk 0:00:14]} 26. Qxh7 {[%clk 0:00:15]}  Nxe5 {[%clk 0:00:11]} 27. Rxc7 {[%clk 0:00:14]}  Nf3+ {[%clk 0:00:11]} 28. gxf3 {[%clk 0:00:13]}  Rxe1+ {[%clk 0:00:12]} 29. Kg2 {[%clk 0:00:14]}  Kxc7 {[%clk 0:00:13]} 30. Qxg7+ {[%clk 0:00:14]}  Kc6 {[%clk 0:00:13]} 31. Qc3+ {[%clk 0:00:13]}  Kb6 {[%clk 0:00:12]} 32. Qxe1 {[%clk 0:00:14]}  Rg8+ {[%clk 0:00:12]} 33. Kf1 {[%clk 0:00:12]}  Kc7 {[%clk 0:00:10]} 34. Qc3+ {[%clk 0:00:11]}  Kd7 {[%clk 0:00:09]} 35. Qe5 {[%clk 0:00:11]}  Nc4 {[%clk 0:00:08]} 36. Qxd5+ {[%clk 0:00:11]}  Nd6 {[%clk 0:00:08]} 37. Qxg8 {[%clk 0:00:11]} 1-0


[Site "https://www.chess.com"]

[Event "Titled Tuesday Blitz November 29 Early 2022"]
[White "Clawitter, Craig"]
[Black "Womacka, Mathias"]
[WhiteFideId "2023105"]
[BlackFideId "4611390"]
[WhiteElo "2236"]
[BlackElo "2378"]
[Result "0-1"]
[Round "04"]
[TimeControl "180+1"]
[Date "2022.11.30"]
[WhiteClock "0:00:05"]
[BlackClock "0:00:22"]

1. e4 {[%clk 0:03:00]}  c5 {[%clk 0:02:59]} 2. Nf3 {[%clk 0:03:00]}  d6 {[%clk 0:02:59]} 3. d4 {[%clk 0:03:01]}  cxd4 {[%clk 0:03:00]} 4. Nxd4 {[%clk 0:03:02]}  Nf6 {[%clk 0:02:59]} 5. Nc3 {[%clk 0:03:02]}  a6 {[%clk 0:03:00]} 6. Be3 {[%clk 0:03:03]}  e5 {[%clk 0:02:59]} 7. Nb3 {[%clk 0:03:04]}  Be7 {[%clk 0:02:58]} 8. f3 {[%clk 0:03:04]}  Be6 {[%clk 0:02:57]} 9. Qd2 {[%clk 0:03:05]}  O-O {[%clk 0:02:57]} 10. O-O-O {[%clk 0:03:05]}  Nbd7 {[%clk 0:02:57]} 11. g4 {[%clk 0:03:04]}  b5 {[%clk 0:02:54]} 12. Rg1 {[%clk 0:03:04]}  Nb6 {[%clk 0:02:54]} 13. Na5 {[%clk 0:03:02]}  Rc8 {[%clk 0:02:52]} 14. g5 {[%clk 0:02:51]}  Nh5 {[%clk 0:02:51]} 15. Nd5 {[%clk 0:02:36]}  Nxd5 {[%clk 0:02:50]} 16. exd5 {[%clk 0:02:37]}  Bxd5 {[%clk 0:02:50]} 17. Qxd5 {[%clk 0:02:37]}  Qxa5 {[%clk 0:02:50]} 18. Kb1 {[%clk 0:02:19]}  Qc7 {[%clk 0:02:33]} 19. c4 {[%clk 0:01:41]}  bxc4 {[%clk 0:02:29]} 20. Rc1 {[%clk 0:01:34]}  Qc6 {[%clk 0:02:15]} 21. Bxc4 {[%clk 0:01:24]}  Qxd5 {[%clk 0:02:00]} 22. Bxd5 {[%clk 0:01:25]}  a5 {[%clk 0:02:00]} 23. a4 {[%clk 0:01:20]}  g6 {[%clk 0:01:55]} 24. Bd2 {[%clk 0:00:47]}  Nf4 {[%clk 0:01:46]} 25. Bxf4 {[%clk 0:00:42]}  exf4 {[%clk 0:01:47]} 26. h4 {[%clk 0:00:39]}  Kg7 {[%clk 0:01:43]} 27. Rg4 {[%clk 0:00:34]}  Rxc1+ {[%clk 0:01:38]} 28. Kxc1 {[%clk 0:00:35]}  Rc8+ {[%clk 0:01:37]} 29. Kd2 {[%clk 0:00:34]}  Rc5 {[%clk 0:01:16]} 30. Bb3 {[%clk 0:00:20]}  f5 {[%clk 0:00:58]} 31. Rxf4 {[%clk 0:00:16]}  h6 {[%clk 0:00:57]} 32. gxh6+ {[%clk 0:00:16]}  Kxh6 {[%clk 0:00:57]} 33. Rd4 {[%clk 0:00:16]}  Kh5 {[%clk 0:00:50]} 34. Bd1 {[%clk 0:00:16]}  d5 {[%clk 0:00:35]} 35. f4+ {[%clk 0:00:14]}  Kxh4 {[%clk 0:00:34]} 36. Bf3 {[%clk 0:00:14]}  Kg3 {[%clk 0:00:33]} 37. Bxd5 {[%clk 0:00:13]}  Bf6 {[%clk 0:00:31]} 38. Rd3+ {[%clk 0:00:13]}  Kxf4 {[%clk 0:00:31]} 39. b3 {[%clk 0:00:11]}  g5 {[%clk 0:00:30]} 40. Be6 {[%clk 0:00:10]}  g4 {[%clk 0:00:30]} 41. Rd5 {[%clk 0:00:08]}  Rxd5+ {[%clk 0:00:25]} 42. Bxd5 {[%clk 0:00:09]}  Kg5 {[%clk 0:00:25]} 43. Ke3 {[%clk 0:00:08]}  f4+ {[%clk 0:00:25]} 44. Kf2 {[%clk 0:00:06]}  f3 {[%clk 0:00:23]} 45. Kg3 {[%clk 0:00:06]}  Be5+ {[%clk 0:00:23]} 46. Kf2 {[%clk 0:00:07]}  Kf4 {[%clk 0:00:23]} 47. Kf1 {[%clk 0:00:05]}  g3 {[%clk 0:00:22]} 48. Kg1 {[%clk 0:00:05]}  Bd4+ {[%clk 0:00:22]} 49. Kf1 {[%clk 0:00:05]}  g2+ {[%clk 0:00:22]} 0-1


[Site "https://www.chess.com"]

[Event "Titled Tuesday Blitz November 29 Early 2022"]
[White "Czopor, Maciej"]
[Black "Fernandez Siles, Luis"]
[WhiteFideId "21805431"]
[BlackFideId "2209420"]
[WhiteElo "2324"]
[BlackElo "2186"]
[Result "0-1"]
[Round "04"]
[TimeControl "180+1"]
[Date "2022.11.30"]
[WhiteClock "0:02:05"]
[BlackClock "0:01:42"]

1. c4 {[%clk 0:03:00]}  Nf6 {[%clk 0:02:59]} 2. Nc3 {[%clk 0:03:00]}  g6 {[%clk 0:02:59]} 3. e4 {[%clk 0:03:01]}  d6 {[%clk 0:03:00]} 4. d4 {[%clk 0:03:01]}  Bg7 {[%clk 0:03:00]} 5. f4 {[%clk 0:03:01]}  O-O {[%clk 0:03:00]} 6. Nf3 {[%clk 0:03:01]}  c5 {[%clk 0:03:00]} 7. d5 {[%clk 0:03:01]}  e6 {[%clk 0:03:00]} 8. Be2 {[%clk 0:03:01]}  exd5 {[%clk 0:03:00]} 9. cxd5 {[%clk 0:03:02]}  Bg4 {[%clk 0:03:00]} 10. O-O {[%clk 0:03:00]}  Nbd7 {[%clk 0:02:59]} 11. h3 {[%clk 0:02:57]}  Bxf3 {[%clk 0:02:59]} 12. Bxf3 {[%clk 0:02:58]}  Ne8 {[%clk 0:02:59]} 13. g4 {[%clk 0:02:58]}  Nc7 {[%clk 0:02:58]} 14. a4 {[%clk 0:02:57]}  a6 {[%clk 0:02:53]} 15. a5 {[%clk 0:02:53]}  Nb5 {[%clk 0:02:53]} 16. Qd3 {[%clk 0:02:43]}  Nd4 {[%clk 0:02:44]} 17. Bg2 {[%clk 0:02:44]}  b5 {[%clk 0:02:17]} 18. axb6 {[%clk 0:02:37]}  Qxb6 {[%clk 0:02:16]} 19. Ra3 {[%clk 0:02:33]}  c4 {[%clk 0:01:56]} 20. Qe3 {[%clk 0:02:33]}  Nc5 {[%clk 0:01:50]} 21. g5 {[%clk 0:02:06]}  Nc2 {[%clk 0:01:48]} 22. Qg3 {[%clk 0:02:05]}  Nxe4+ {[%clk 0:01:42]} 0-1


[Site "https://www.chess.com"]

[Event "Titled Tuesday Blitz November 29 Early 2022"]
[White "Danielyan, Vahe"]
[Black "Mohammed, Dilshad"]
[WhiteFideId "13304828"]
[BlackFideId "5050421"]
[WhiteElo "2423"]
[BlackElo "2102"]
[Result "1-0"]
[Round "04"]
[TimeControl "180+1"]
[Date "2022.11.30"]
[WhiteClock "0:01:48"]
[BlackClock "0:00:16"]

1. c4 {[%clk 0:03:00]}  e5 {[%clk 0:02:59]} 2. Nc3 {[%clk 0:03:00]}  Nf6 {[%clk 0:02:59]} 3. g3 {[%clk 0:03:00]}  d5 {[%clk 0:03:00]} 4. cxd5 {[%clk 0:03:00]}  Nxd5 {[%clk 0:03:01]} 5. Bg2 {[%clk 0:03:00]}  Nb6 {[%clk 0:03:02]} 6. Nf3 {[%clk 0:03:00]}  Nc6 {[%clk 0:03:02]} 7. O-O {[%clk 0:03:00]}  Be7 {[%clk 0:03:03]} 8. d3 {[%clk 0:03:01]}  O-O {[%clk 0:03:04]} 9. Be3 {[%clk 0:03:01]}  Be6 {[%clk 0:03:03]} 10. Rc1 {[%clk 0:03:01]}  f6 {[%clk 0:03:02]} 11. Na4 {[%clk 0:02:58]}  Nxa4 {[%clk 0:02:51]} 12. Qxa4 {[%clk 0:02:59]}  a6 {[%clk 0:02:50]} 13. Nd2 {[%clk 0:02:57]}  Bd5 {[%clk 0:02:44]} 14. Bxd5+ {[%clk 0:02:55]}  Qxd5 {[%clk 0:02:45]} 15. a3 {[%clk 0:02:55]}  Rac8 {[%clk 0:02:43]} 16. Qc4 {[%clk 0:02:53]}  Rfd8 {[%clk 0:02:42]} 17. Qxd5+ {[%clk 0:02:53]}  Rxd5 {[%clk 0:02:43]} 18. Rc4 {[%clk 0:02:53]}  Na5 {[%clk 0:02:36]} 19. Rc2 {[%clk 0:02:52]}  Nc6 {[%clk 0:02:15]} 20. Rfc1 {[%clk 0:02:51]}  Rcd8 {[%clk 0:02:14]} 21. b4 {[%clk 0:02:48]}  R8d7 {[%clk 0:02:11]} 22. Nb3 {[%clk 0:02:47]}  Bd8 {[%clk 0:02:06]} 23. Kg2 {[%clk 0:02:45]}  f5 {[%clk 0:01:53]} 24. Rxc6 {[%clk 0:02:40]}  bxc6 {[%clk 0:01:51]} 25. Rxc6 {[%clk 0:02:41]}  R7d6 {[%clk 0:01:48]} 26. Rc4 {[%clk 0:02:40]}  g5 {[%clk 0:01:46]} 27. Bc5 {[%clk 0:02:34]}  Rg6 {[%clk 0:01:42]} 28. g4 {[%clk 0:02:33]}  fxg4 {[%clk 0:01:39]} 29. Rxg4 {[%clk 0:02:34]}  h5 {[%clk 0:01:39]} 30. Re4 {[%clk 0:02:34]}  g4 {[%clk 0:01:38]} 31. Na5 {[%clk 0:02:31]}  h4 {[%clk 0:01:36]} 32. h3 {[%clk 0:02:27]}  g3 {[%clk 0:01:33]} 33. Nc4 {[%clk 0:02:25]}  gxf2+ {[%clk 0:01:28]} 34. Kxf2 {[%clk 0:02:26]}  Bf6 {[%clk 0:01:24]} 35. Ne3 {[%clk 0:02:25]}  Rd7 {[%clk 0:01:17]} 36. Ng4 {[%clk 0:02:24]}  Rf7 {[%clk 0:01:12]} 37. Nxf6+ {[%clk 0:02:24]}  Rgxf6+ {[%clk 0:01:11]} 38. Ke3 {[%clk 0:02:24]}  Rf5 {[%clk 0:01:00]} 39. Rxh4 {[%clk 0:02:22]}  Rh7 {[%clk 0:01:00]} 40. Rg4+ {[%clk 0:02:19]}  Kf7 {[%clk 0:01:00]} 41. Rg3 {[%clk 0:02:01]}  Rfh5 {[%clk 0:00:59]} 42. Rf3+ {[%clk 0:02:02]}  Ke6 {[%clk 0:00:59]} 43. Kd2 {[%clk 0:02:03]}  Rxh3 {[%clk 0:00:59]} 44. Rf8 {[%clk 0:02:04]}  Rh2 {[%clk 0:00:57]} 45. Ra8 {[%clk 0:02:04]}  Rg7 {[%clk 0:00:54]} 46. Rxa6+ {[%clk 0:02:02]}  Kd5 {[%clk 0:00:48]} 47. Ra7 {[%clk 0:01:55]}  Rgg2 {[%clk 0:00:46]} 48. Rxc7 {[%clk 0:01:54]}  Rxe2+ {[%clk 0:00:46]} 49. Kc3 {[%clk 0:01:54]}  Rc2+ {[%clk 0:00:46]} 50. Kb3 {[%clk 0:01:54]}  Rb2+ {[%clk 0:00:43]} 51. Ka4 {[%clk 0:01:54]}  Rbd2 {[%clk 0:00:41]} 52. Rd7+ {[%clk 0:01:53]}  Kc6 {[%clk 0:00:40]} 53. Rd6+ {[%clk 0:01:53]}  Kc7 {[%clk 0:00:41]} 54. Kb5 {[%clk 0:01:54]}  e4 {[%clk 0:00:38]} 55. Rc6+ {[%clk 0:01:52]}  Kd7 {[%clk 0:00:34]} 56. dxe4 {[%clk 0:01:53]}  Rh4 {[%clk 0:00:30]} 57. e5 {[%clk 0:01:51]}  Re4 {[%clk 0:00:30]} 58. Rd6+ {[%clk 0:01:47]}  Rxd6 {[%clk 0:00:28]} 59. Bxd6 {[%clk 0:01:48]}  Kc8 {[%clk 0:00:23]} 60. a4 {[%clk 0:01:49]}  Kb7 {[%clk 0:00:23]} 61. a5 {[%clk 0:01:50]}  Re1 {[%clk 0:00:22]} 62. a6+ {[%clk 0:01:51]}  Ka8 {[%clk 0:00:21]} 63. Kc6 {[%clk 0:01:50]}  Ka7 {[%clk 0:00:20]} 64. b5 {[%clk 0:01:50]}  Rc1+ {[%clk 0:00:20]} 65. Bc5+ {[%clk 0:01:50]}  Ka8 {[%clk 0:00:19]} 66. e6 {[%clk 0:01:50]}  Kb8 {[%clk 0:00:18]} 67. e7 {[%clk 0:01:50]}  Re1 {[%clk 0:00:18]} 68. Kd7 {[%clk 0:01:48]}  Rd1+ {[%clk 0:00:16]} 69. Bd6+ {[%clk 0:01:49]}  Ka7 {[%clk 0:00:16]} 70. e8=Q {[%clk 0:01:48]} 1-0


[Site "https://www.chess.com"]

[Event "Titled Tuesday Blitz November 29 Early 2022"]
[White "Dardha, Daniel"]
[Black "Caruana, Fabiano"]
[WhiteFideId "240990"]
[BlackFideId "2020009"]
[WhiteElo "2528"]
[BlackElo "2847"]
[Result "1/2-1/2"]
[Round "04"]
[TimeControl "180+1"]
[Date "2022.11.30"]
[WhiteClock "0:00:19"]
[BlackClock "0:00:50"]

1. e4 {[%clk 0:02:58]}  e5 {[%clk 0:02:58]} 2. Nf3 {[%clk 0:02:58]}  Nc6 {[%clk 0:02:59]} 3. Bc4 {[%clk 0:02:57]}  Nf6 {[%clk 0:02:58]} 4. d3 {[%clk 0:02:57]}  Bc5 {[%clk 0:02:58]} 5. c3 {[%clk 0:02:57]}  d6 {[%clk 0:02:58]} 6. O-O {[%clk 0:02:55]}  a6 {[%clk 0:02:59]} 7. a4 {[%clk 0:02:54]}  Ba7 {[%clk 0:02:57]} 8. Re1 {[%clk 0:02:53]}  O-O {[%clk 0:02:55]} 9. h3 {[%clk 0:02:53]}  Be6 {[%clk 0:02:54]} 10. Nbd2 {[%clk 0:02:50]}  Bxc4 {[%clk 0:02:51]} 11. Nxc4 {[%clk 0:02:51]}  Re8 {[%clk 0:02:49]} 12. Be3 {[%clk 0:02:48]}  Bxe3 {[%clk 0:02:48]} 13. Nxe3 {[%clk 0:02:49]}  d5 {[%clk 0:02:44]} 14. Qb3 {[%clk 0:02:32]}  dxe4 {[%clk 0:02:39]} 15. dxe4 {[%clk 0:02:33]}  Qc8 {[%clk 0:02:35]} 16. Nd5 {[%clk 0:02:28]}  Nd7 {[%clk 0:02:33]} 17. Ng5 {[%clk 0:02:19]}  Nd8 {[%clk 0:02:24]} 18. Rad1 {[%clk 0:02:14]}  h6 {[%clk 0:02:22]} 19. Nf3 {[%clk 0:02:11]}  Ne6 {[%clk 0:02:17]} 20. Qa3 {[%clk 0:02:06]}  Qd8 {[%clk 0:02:05]} 21. Rd2 {[%clk 0:01:57]}  Nef8 {[%clk 0:01:46]} 22. Red1 {[%clk 0:01:52]}  c6 {[%clk 0:01:41]} 23. Ne3 {[%clk 0:01:52]}  Qc7 {[%clk 0:01:36]} 24. a5 {[%clk 0:01:51]}  Nf6 {[%clk 0:01:30]} 25. Qb4 {[%clk 0:01:43]}  Ng6 {[%clk 0:01:24]} 26. Nf5 {[%clk 0:01:40]}  Kh7 {[%clk 0:01:07]} 27. Nh2 {[%clk 0:01:39]}  Rab8 {[%clk 0:01:05]} 28. Ng4 {[%clk 0:01:38]}  Nxg4 {[%clk 0:01:01]} 29. hxg4 {[%clk 0:01:34]}  Rbd8 {[%clk 0:00:53]} 30. Rxd8 {[%clk 0:00:48]}  Rxd8 {[%clk 0:00:54]} 31. Rxd8 {[%clk 0:00:49]}  Qxd8 {[%clk 0:00:54]} 32. Qxb7 {[%clk 0:00:49]}  Qd1+ {[%clk 0:00:54]} 33. Kh2 {[%clk 0:00:49]}  Qxg4 {[%clk 0:00:54]} 34. Qxf7 {[%clk 0:00:28]}  Qh5+ {[%clk 0:00:49]} 35. Kg1 {[%clk 0:00:26]}  Qd1+ {[%clk 0:00:49]} 36. Kh2 {[%clk 0:00:26]}  Qh5+ {[%clk 0:00:49]} 37. Kg1 {[%clk 0:00:19]}  Qd1+ {[%clk 0:00:49]} 38. Kh2 {[%clk 0:00:19]}  Qh5+ {[%clk 0:00:50]} 1/2-1/2


[Site "https://www.chess.com"]